[Event "Romanian Women Championship 2024"]
[Site "Eforie Nord"]
[Date "2024.03.02"]
[Round "9.6"]
[White "Batagan, Ilinca-Petra"]
[Black "Maria, Lia-Alexandra"]
[Result "1-0"]
[ECO "B94"]
[WhiteElo "1859"]
[BlackElo "1937"]
[Annotator "NA RC"]
[PlyCount "69"]
[EventDate "2024.02.24"]
[EventType "swiss"]
[EventCountry "ROU"]
[SourceTitle "playchess.com"]
[Source "ChessBase"]
[SourceQuality "1"]
[TimeControl "40/5400+30:900+30"]

1. e4 {[%emt 0:00:10]} c5 {[%emt 0:00:35]} 2. Nf3 {[%emt 0:00:16]} d6 {[%emt 0:00:06]} 3. d4 {[%emt 0:00:39]} Nf6 {[%emt 0:00:04]} 4. Nc3 {[%emt 0:00:28]} cxd4 {[%emt 0:00:08]} 5. Nxd4 {[%emt 0:00:11]} a6 {[%emt 0:00:14]} 6. Bg5 {[%emt 0:01:50]} Nbd7 {[%emt 0:01:41]} 7. Qe2 {[%emt 0:01:54]} g6 {[%emt 0:01:23]} 8. f4 {[%emt 0:05:00]} h6 {[%emt 0:08:57]} 9. Bh4 {[%emt 0:00:32]} e5 {[%emt 0:01:44]} 10. fxe5 {[%emt 0:05:29]} dxe5 {[%emt 0:01:09]} 11. O-O-O {[%emt 0:05:24]} Qc7 {[%emt 0:03:27]} 12. Nb3 {[%emt 0:02:05]} b5 {[%emt 0:05:41]} 13. Rxd7 {[%emt 0:04:40]} Nxd7 {[%emt 0:01:31]} 14. Nd5 $11 {[%emt 0:00:16]} Qd6 {[%emt 0:01:36]} 15. Na5 {[%emt 0:05:38]} g5 {[%emt 0:02:54]} 16. Be1 {[%emt 0:09:02]} Rb8 {[%emt 0:17:16]} 17. Bb4 {[%emt 0:05:29]} Qg6 {[%emt 0:00:23]} 18. Qe1 {[%emt 0:16:19]} Bc5 {[%emt 0:05:48]} 19. Bd3 {[%emt 0:02:37]} Qd6 {[%emt 0:01:31]} 20. Rf1 {[%emt 0:04:54]} O-O {[%emt 0:03:06]} 21. Bxc5 {[%emt 0:06:14]} Qxc5 {[%emt 0:00:22]} 22. Nc6 {[%emt 0:00:23]} Ra8 {[%emt 0:09:52]} 23. Nce7+ {[%emt 0:00:49]} Kh7 {[%emt 0:01:24]} 24. h4 {[%emt 0:01:49]} Qd6 {[%emt 0:05:13]} 25. hxg5 {[%emt 0:01:10]} Bb7 {[%emt 0:02:15]} 26. Rh1 {[%emt 0:02:46]} Rae8 {[%emt 0:03:25]} 27. Rxh6+ {[%emt 0:01:15]} Qxh6 {[%emt 0:00:08]} 28. gxh6 {[%emt 0:00:04]} Bxd5 {[%emt 0:01:01]} 29. exd5+ {[%emt 0:01:49]} e4 {[%emt 0:00:43]} 30. Qg3 {[%emt 0:00:17]} Rg8 {[%emt 0:00:11]} 31. Nxg8 {[%emt 0:00:07]} Rxg8 {[%emt 0:00:03]} 32. Bxe4+ {[%emt 0:00:08]} Kh8 {[%emt 0:00:04]} 33. Qc3+ {[%emt 0:00:15]} f6 {[%emt 0:00:04]} 34. Qc7 {[%emt 0:00:26]} Ne5 {[%emt 0:00:17]} 35. Qh7# {[%emt 0:00:06]} 1-0

[Event "Romanian Women Championship 2024"]
[Site "Eforie Nord"]
[Date "2024.03.02"]
[Round "9.7"]
[White "Iordache, Alexia-Andreea"]
[Black "Paraschiv, Petronela-Alexandra"]
[Result "1/2-1/2"]
[ECO "A05"]
[WhiteElo "1769"]
[BlackElo "1875"]
[Annotator "NA RC"]
[PlyCount "140"]
[EventDate "2024.02.24"]
[EventType "swiss"]
[EventCountry "ROU"]
[SourceTitle "playchess.com"]
[Source "ChessBase"]
[SourceQuality "1"]
[TimeControl "40/5400+30:900+30"]

1. Nf3 {[%emt 0:00:06]} Nf6 {[%emt 0:00:12]} 2. g3 {[%emt 0:00:08]} b5 {[%emt 0:00:29]} 3. Bg2 {[%emt 0:00:13]} Bb7 {[%emt 0:00:05]} 4. d3 {[%emt 0:00:13]} c5 {[%emt 0:00:30]} 5. O-O {[%emt 0:01:04]} e6 {[%emt 0:00:25]} 6. e4 {[%emt 0:04:19]} d6 {[%emt 0:05:33]} 7. Nbd2 {[%emt 0:06:17]} Be7 {[%emt 0:00:52]} 8. a4 {[%emt 0:00:50]} a6 {[%emt 0:01:32]} 9. Re1 {[%emt 0:07:18]} O-O {[%emt 0:08:50]} 10. Nf1 {[%emt 0:05:30]} Nbd7 {[%emt 0:11:00]} 11. N3d2 {[%emt 0:07:39]} Qc7 {[%emt 0:04:38]} 12. Ne3 {[%emt 0:04:07]} Nb6 {[%emt 0:02:13]} 13. a5 {[%emt 0:02:53]} Nc8 {[%emt 0:04:05]} 14. f4 {[%emt 0:01:10]} Na7 {[%emt 0:03:32]} 15. g4 {[%emt 0:06:50]} d5 {[%emt 0:05:11]} 16. e5 {[%emt 0:03:46]} Nd7 {[%emt 0:00:29]} 17. g5 {[%emt 0:04:42]} c4 {[%emt 0:08:43]} 18. d4 {[%emt 0:08:29]} c3 {[%emt 0:00:53]} 19. bxc3 {[%emt 0:02:10]} Qxc3 {[%emt 0:00:46]} 20. Nb3 {[%emt 0:00:31]} Rfc8 {[%emt 0:03:01]} 21. Bd2 {[%emt 0:01:15]} Qc7 {[%emt 0:00:05]} 22. Qh5 {[%emt 0:00:41]} Nf8 {[%emt 0:02:35]} 23. Bf1 {[%emt 0:05:48]} Bc6 {[%emt 0:17:18]} 24. Bd3 {[%emt 0:06:48]} b4 {[%emt 0:03:08]} 25. Bxa6 {[%emt 0:02:12]} Rcb8 {[%emt 0:00:08]} 26. Rf1 {[%emt 0:05:05]} Nb5 {[%emt 0:00:53]} 27. Bxb5 {[%emt 0:00:14]} Bxb5 {[%emt 0:00:04]} 28. Rf2 {[%emt 0:01:47]} Be8 {[%emt 0:01:11]} 29. Qg4 {[%emt 0:00:38]} Kh8 {[%emt 0:01:03]} 30. h4 {[%emt 0:02:06]} g6 {[%emt 0:05:03]} 31. Rh2 {[%emt 0:01:19]} Bd8 {[%emt 0:03:02]} 32. Kf2 {[%emt 0:01:15]} Qe7 {[%emt 0:01:17]} 33. h5 {[%emt 0:00:47]} Ra7 {[%emt 0:01:13]} 34. Qe2 {[%emt 0:03:23]} Bb5 {[%emt 0:00:34]} 35. Qe1 {[%emt 0:00:45]} Bc4 {[%emt 0:00:23]} 36. Ra4 {[%emt 0:02:35]} Bxb3 {[%emt 0:01:13]} 37. cxb3 {[%emt 0:00:01]} Bxa5 {[%emt 0:00:46]} 38. Nc2 {[%emt 0:01:20]} Qc7 {[%emt 0:01:59]} 39. Nxb4 {[%emt 0:03:46]} Bb6 {[%emt 0:04:31]} 40. Qe3 {[%emt 0:00:00]} Rxa4 {[%emt 0:00:00]} 41. bxa4 {[%emt 0:00:00]} Qc4 {[%emt 0:02:26]} 42. Kg3 {[%emt 0:12:00]} Bxd4 {[%emt 0:00:27]} 43. Qe2 {[%emt 0:00:53]} Qb3+ {[%emt 0:02:25]} 44. Nd3 {[%emt 0:01:08]} Qxa4 {[%emt 0:00:44]} 45. hxg6 {[%emt 0:03:59]} fxg6 {[%emt 0:00:30]} 46. Be3 {[%emt 0:00:00]} Rb3 {[%emt 0:02:52]} 47. Kg4 {[%emt 0:00:00]} Qc4 {[%emt 0:02:50]} 48. Bxd4 {[%emt 0:00:00]} Qxd4 {[%emt 0:01:02]} 49. Rh3 {[%emt 0:00:30]} Ra3 {[%emt 0:03:22]} 50. Qc2 {[%emt 0:00:45]} Qc3 {[%emt 0:00:58]} 51. Qxc3 {[%emt 0:00:45]} Rxc3 {[%emt 0:00:06]} 52. Nf2 {[%emt 0:00:27]} Rc2 {[%emt 0:02:21]} 53. Nd3 {[%emt 0:00:35]} Nd7 {[%emt 0:00:35]} 54. Nb4 {[%emt 0:00:26]} Rc4 {[%emt 0:00:11]} 55. Rb3 {[%emt 0:00:49]} Nxe5+ {[%emt 0:00:09]} 56. Kg3 {[%emt 0:00:06]} Nf7 {[%emt 0:00:43]} 57. Nd3 {[%emt 0:00:13]} Kg7 {[%emt 0:00:22]} 58. Kf3 {[%emt 0:00:29]} Rc7 {[%emt 0:00:31]} 59. Rb6 {[%emt 0:00:13]} Re7 {[%emt 0:01:37]} 60. Nc5 {[%emt 0:00:06]} Nd8 {[%emt 0:00:23]} 61. Rd6 {[%emt 0:01:36]} Rc7 {[%emt 0:01:21]} 62. Nxe6+ {[%emt 0:00:49]} Nxe6 {[%emt 0:00:04]} 63. Rxe6 {[%emt 0:00:03]} Rc3+ {[%emt 0:00:05]} 64. Ke2 {[%emt 0:00:13]} Rc4 {[%emt 0:01:16]} 65. Ke3 {[%emt 0:00:20]} Kf7 {[%emt 0:00:31]} 66. Rd6 {[%emt 0:00:09]} Re4+ {[%emt 0:00:35]} 67. Kf3 {[%emt 0:00:10]} Rd4 {[%emt 0:00:07]} 68. Rd7+ {[%emt 0:00:12]} Kg8 {[%emt 0:00:23]} 69. Rd8+ {[%emt 0:00:01]} Kf7 {[%emt 0:00:27]} 70. Rd7+ {[%emt 0:00:05]} Kg8 {[%emt 0:01:42]} 1/2-1/2

[Event "Romanian Women Championship 2024"]
[Site "Eforie Nord"]
[Date "2024.03.02"]
[Round "9.8"]
[White "Pirvulescu, Ekaterina"]
[Black "Ciocirlan, Bianca-Alexandra"]
[Result "1-0"]
[ECO "C78"]
[WhiteElo "2091"]
[BlackElo "1542"]
[Annotator "NA RC"]
[PlyCount "97"]
[EventDate "2024.02.24"]
[EventType "swiss"]
[EventCountry "ROU"]
[SourceTitle "playchess.com"]
[Source "ChessBase"]
[SourceQuality "1"]
[TimeControl "40/5400+30:900+30"]

1. e4 {[%emt 0:00:02]} e5 {[%emt 0:00:04]} 2. Nf3 {[%emt 0:00:09]} Nc6 {[%emt 0:00:04]} 3. Bb5 {[%emt 0:00:18]} a6 {[%emt 0:00:05]} 4. Ba4 {[%emt 0:00:09]} b5 {[%emt 0:00:08]} 5. Bb3 {[%emt 0:00:09]} Nf6 {[%emt 0:00:07]} 6. O-O {[%emt 0:00:51]} Bc5 {[%emt 0:00:42]} 7. c3 {[%emt 0:00:43]} d6 {[%emt 0:01:58]} 8. d4 {[%emt 0:00:33]} exd4 {[%emt 0:00:50]} 9. cxd4 {[%emt 0:00:23]} Bb6 {[%emt 0:00:43]} 10. Nc3 {[%emt 0:04:37]} Bg4 {[%emt 0:02:26]} 11. e5 {[%emt 0:04:57]} dxe5 {[%emt 0:01:30]} 12. dxe5 {[%emt 0:02:06]} Qxd1 {[%emt 0:15:50]} 13. Rxd1 {[%emt 0:04:27]} Ng8 {[%emt 0:06:10]} ({Avoid the trap} 13... Bxf3 $2 14. gxf3 Ng8 (14... Nxe5 $2 {too greedy.} 15. Re1 $18) 15. Nd5 $18) 14. Nd5 {[%emt 0:11:25]} Nge7 $16 {[%emt 0:04:42]} 15. Be3 {[%emt 0:08:16]} O-O {[%emt 0:13:14]} 16. Nxb6 {[%emt 0:11:24]} cxb6 {[%emt 0:05:04]} 17. Bxb6 {[%emt 0:02:21]} Bxf3 {[%emt 0:02:03]} 18. gxf3 {[%emt 0:00:05]} Nxe5 {[%emt 0:01:49]} 19. Bc5 {[%emt 0:01:21]} Rfe8 {[%emt 0:00:29]} 20. f4 {[%emt 0:06:17]} N5g6 {[%emt 0:01:29]} 21. Rd7 {[%emt 0:03:36]} Rad8 {[%emt 0:06:03]} 22. Rad1 {[%emt 0:02:37]} Rxd7 {[%emt 0:11:12]} 23. Rxd7 {[%emt 0:00:05]} Kf8 {[%emt 0:01:47]} 24. f5 {[%emt 0:08:36]} Ne5 {[%emt 0:01:02]} 25. Ra7 {[%emt 0:01:26]} Nc4 {[%emt 0:03:28]} 26. Rxa6 {[%emt 0:01:19]} Rc8 {[%emt 0:01:49]} 27. Bb4 {[%emt 0:01:42]} Ke8 {[%emt 0:01:35]} 28. f6 {[%emt 0:04:47]} gxf6 {[%emt 0:00:36]} 29. Bc3 {[%emt 0:00:45]} Nd5 {[%emt 0:01:34]} 30. Bxf6 {[%emt 0:02:27]} Nxf6 {[%emt 0:00:42]} 31. Rxf6 {[%emt 0:00:05]} Ke7 {[%emt 0:00:05]} 32. Rf5 {[%emt 0:01:53]} Rg8+ {[%emt 0:01:41]} 33. Kf1 {[%emt 0:02:51]} Nd6 {[%emt 0:03:21]} 34. Re5+ {[%emt 0:01:09]} Kf6 {[%emt 0:00:40]} 35. Rh5 {[%emt 0:01:57]} Rh8 {[%emt 0:01:44]} 36. Bc2 {[%emt 0:01:28]} h6 {[%emt 0:00:10]} 37. Bd3 {[%emt 0:00:26]} b4 {[%emt 0:00:34]} 38. Rh4 {[%emt 0:01:14]} Ra8 {[%emt 0:01:59]} 39. Rxh6+ {[%emt 0:00:35]} Ke7 {[%emt 0:00:04]} 40. Rh4 {[%emt 0:00:00]} Rxa2 {[%emt 0:00:00]} 41. Rxb4 {[%emt 0:01:32]} Ra1+ {[%emt 0:06:29]} 42. Ke2 {[%emt 0:05:46]} Rh1 {[%emt 0:00:21]} 43. Rh4 {[%emt 0:00:39]} f5 {[%emt 0:01:25]} 44. b4 {[%emt 0:00:42]} Ra1 {[%emt 0:00:45]} 45. Ke3 {[%emt 0:05:40]} Ra2 {[%emt 0:01:37]} 46. Rf4 {[%emt 0:00:54]} Rb2 {[%emt 0:02:36]} 47. Bxf5 {[%emt 0:04:49]} Nxf5+ {[%emt 0:01:21]} 48. Rxf5 {[%emt 0:00:04]} Rxb4 {[%emt 0:00:04]} 49. Kf3 {[%emt 0:01:03]} 1-0

[Event "Romanian Women Championship 2024"]
[Site "Eforie Nord"]
[Date "2024.03.02"]
[Round "9.9"]
[White "Sunea, Sara Maria"]
[Black "Puia, Alexia-Teodora"]
[Result "1/2-1/2"]
[ECO "B22"]
[WhiteElo "1561"]
[BlackElo "1751"]
[Annotator "NA RC"]
[PlyCount "76"]
[EventDate "2024.02.24"]
[EventType "swiss"]
[EventCountry "ROU"]
[SourceTitle "playchess.com"]
[Source "ChessBase"]
[SourceQuality "1"]
[TimeControl "40/5400+30:900+30"]

1. e4 {[%emt 0:00:02]} c5 {[%emt 0:00:14]} 2. Nf3 {[%emt 0:00:05]} Nc6 {[%emt 0:00:19]} 3. c3 {[%emt 0:00:12]} d5 {[%emt 0:00:11]} 4. exd5 {[%emt 0:00:09]} Qxd5 {[%emt 0:00:04]} 5. d4 {[%emt 0:00:11]} e5 {[%emt 0:00:30]} 6. dxe5 {[%emt 0:07:14]} Qxd1+ {[%emt 0:00:06]} 7. Kxd1 {[%emt 0:00:05]} Bg4 {[%emt 0:00:03]} 8. Bf4 {[%emt 0:02:51]} Nge7 {[%emt 0:00:06]} 9. Bd3 {[%emt 0:08:07]} O-O-O {[%emt 0:06:09]} 10. Ke2 {[%emt 0:03:05]} Ng6 {[%emt 0:15:18]} 11. Bxg6 {[%emt 0:05:12]} hxg6 {[%emt 0:00:05]} 12. Nbd2 {[%emt 0:00:40]} Be7 {[%emt 0:07:56]} 13. Rhe1 {[%emt 0:02:31]} g5 {[%emt 0:02:39]} 14. Bg3 {[%emt 0:01:21]} Bf5 {[%emt 0:05:08]} 15. h3 {[%emt 0:05:10]} g4 {[%emt 0:07:20]} 16. hxg4 {[%emt 0:01:40]} Bxg4 {[%emt 0:00:06]} 17. Nc4 {[%emt 0:04:59]} Kd7 {[%emt 0:09:50]} 18. Ne3 {[%emt 0:05:17]} Bh5 {[%emt 0:03:02]} 19. Kf1 {[%emt 0:03:43]} Ke6 {[%emt 0:01:54]} 20. Kg1 {[%emt 0:03:28]} Bxf3 {[%emt 0:03:36]} 21. gxf3 {[%emt 0:00:03]} Bh4 {[%emt 0:01:27]} 22. f4 {[%emt 0:02:20]} Bxg3 {[%emt 0:04:23]} 23. fxg3 {[%emt 0:00:02]} Rd2 {[%emt 0:00:49]} 24. f5+ {[%emt 0:20:59]} Ke7 {[%emt 0:00:13]} 25. Nc4 {[%emt 0:00:28]} Rd3 {[%emt 0:04:16]} 26. Re3 {[%emt 0:06:41]} Rxe3 {[%emt 0:01:21]} 27. Nxe3 {[%emt 0:00:02]} Nxe5 {[%emt 0:00:09]} 28. Rd1 {[%emt 0:01:51]} Rd8 {[%emt 0:08:34]} 29. Nd5+ {[%emt 0:00:34]} Kf8 {[%emt 0:00:33]} 30. Kf2 {[%emt 0:01:26]} Nc4 {[%emt 0:01:56]} 31. b3 {[%emt 0:00:24]} Nb6 {[%emt 0:00:13]} 32. Ne3 {[%emt 0:02:47]} Rxd1 33. Nxd1 {[%emt 0:00:01]} Nd5 {[%emt 0:01:27]} 34. Kf3 {[%emt 0:00:22]} Ke7 {[%emt 0:00:08]} 35. Ke4 {[%emt 0:00:33]} Kd6 {[%emt 0:00:12]} 36. c4 {[%emt 0:00:48]} Nb4 {[%emt 0:00:54]} 37. Nc3 {[%emt 0:00:06]} a6 {[%emt 0:01:19]} 38. g4 {[%emt 0:02:37]} b6 {[%emt 0:03:14]} 1/2-1/2

[Event "Romanian Women Championship 2024"]
[Site "Eforie Nord"]
[Date "2024.03.02"]
[Round "9.10"]
[White "Chicarosie, Ioana-Bianca"]
[Black "Badica, Ariana"]
[Result "1-0"]
[ECO "D27"]
[WhiteElo "1705"]
[BlackElo "1494"]
[Annotator "NA RC"]
[PlyCount "63"]
[EventDate "2024.02.24"]
[EventType "swiss"]
[EventCountry "ROU"]
[SourceTitle "playchess.com"]
[Source "ChessBase"]
[SourceQuality "1"]
[TimeControl "40/5400+30:900+30"]

1. d4 {[%emt 0:00:02]} d5 {[%emt 0:00:06]} 2. Nf3 {[%emt 0:00:05]} Nf6 {[%emt 0:00:05]} 3. e3 {[%emt 0:00:06]} c5 {[%emt 0:00:29]} 4. c4 {[%emt 0:00:20]} dxc4 {[%emt 0:00:19]} 5. Bxc4 {[%emt 0:00:07]} e6 {[%emt 0:00:23]} 6. Nbd2 {[%emt 0:00:41]} cxd4 {[%emt 0:02:11]} 7. Nxd4 {[%emt 0:00:06]} a6 {[%emt 0:02:02]} 8. O-O {[%emt 0:02:28]} Bd6 {[%emt 0:00:15]} 9. b3 {[%emt 0:00:22]} O-O {[%emt 0:00:12]} 10. Bb2 {[%emt 0:00:44]} Nbd7 {[%emt 0:07:16]} 11. Rc1 {[%emt 0:11:09]} b5 {[%emt 0:01:43]} 12. Bxe6 {[%emt 0:11:59]} fxe6 {[%emt 0:05:43]} 13. Nxe6 {[%emt 0:00:10]} Qe7 {[%emt 0:00:36]} 14. Nxf8 {[%emt 0:00:28]} Qxf8 {[%emt 0:02:15]} 15. Ne4 {[%emt 0:02:43]} Bxh2+ {[%emt 0:41:08]} 16. Kxh2 {[%emt 0:00:47]} Bb7 {[%emt 0:00:58]} 17. Nxf6+ {[%emt 0:01:02]} Nxf6 {[%emt 0:00:29]} 18. Bxf6 {[%emt 0:00:26]} Qxf6 {[%emt 0:00:40]} 19. Qd7 {[%emt 0:00:23]} Be4 {[%emt 0:10:51]} 20. Rc8+ {[%emt 0:04:59]} Rxc8 {[%emt 0:02:17]} 21. Qxc8+ {[%emt 0:00:04]} Kf7 {[%emt 0:12:48]} 22. Qd7+ {[%emt 0:00:14]} Qe7 {[%emt 0:05:44]} 23. Qxe7+ {[%emt 0:00:13]} Kxe7 {[%emt 0:00:13]} 24. b4 {[%emt 0:00:10]} Bd3 {[%emt 0:01:18]} 25. Rd1 {[%emt 0:00:19]} Bc4 {[%emt 0:00:08]} 26. a3 {[%emt 0:00:06]} g6 {[%emt 0:00:34]} 27. Kg3 {[%emt 0:00:54]} h6 {[%emt 0:00:43]} 28. Rh1 {[%emt 0:01:05]} h5 {[%emt 0:00:12]} 29. e4 {[%emt 0:01:12]} Ke6 {[%emt 0:00:28]} 30. f4 {[%emt 0:00:21]} Bd3 {[%emt 0:00:59]} 31. Kf3 {[%emt 0:00:16]} Bc4 {[%emt 0:00:19]} 32. Rd1 {[%emt 0:00:18]} 1-0

[Event "Romanian Women Championship 2024"]
[Site "Eforie Nord"]
[Date "2024.03.02"]
[Round "9.11"]
[White "Hoanca, Alexia-Ioana"]
[Black "Bira, Andrada-Paraschiva"]
[Result "1-0"]
[ECO "B95"]
[WhiteElo "1748"]
[BlackElo "1590"]
[Annotator "NA RC"]
[PlyCount "77"]
[EventDate "2024.02.24"]
[EventType "swiss"]
[EventCountry "ROU"]
[SourceTitle "playchess.com"]
[Source "ChessBase"]
[SourceQuality "1"]
[TimeControl "40/5400+30:900+30"]

1. e4 {[%emt 0:00:01]} c5 {[%emt 0:00:12]} 2. Nf3 {[%emt 0:00:09]} d6 {[%emt 0:00:12]} 3. d4 {[%emt 0:00:05]} cxd4 {[%emt 0:00:09]} 4. Nxd4 {[%emt 0:00:04]} Nf6 {[%emt 0:00:14]} 5. Nc3 {[%emt 0:00:04]} e6 {[%emt 0:00:13]} 6. Bg5 {[%emt 0:03:26]} Be7 {[%emt 0:00:34]} 7. Qd2 {[%emt 0:00:20]} a6 {[%emt 0:01:43]} 8. O-O-O {[%emt 0:04:56]} Qc7 {[%emt 0:03:33]} 9. Kb1 {[%emt 0:01:48]} O-O {[%emt 0:01:06]} 10. f3 {[%emt 0:04:09]} b5 {[%emt 0:01:21]} 11. a3 {[%emt 0:02:44]} Bb7 {[%emt 0:00:52]} 12. h4 {[%emt 0:01:14]} Nbd7 {[%emt 0:01:39]} 13. g4 {[%emt 0:04:00]} Ne5 {[%emt 0:03:34]} 14. Be3 {[%emt 0:12:48]} Rac8 {[%emt 0:03:57]} 15. Rh3 {[%emt 0:09:17]} Nc4 {[%emt 0:03:56]} 16. Bxc4 {[%emt 0:00:14]} Qxc4 {[%emt 0:00:07]} 17. h5 {[%emt 0:02:06]} b4 {[%emt 0:00:38]} 18. axb4 {[%emt 0:02:43]} Qxb4 {[%emt 0:00:09]} 19. g5 {[%emt 0:00:19]} Nd7 {[%emt 0:00:20]} 20. Nd5 {[%emt 0:07:05]} Qxd2 {[%emt 0:08:32]} 21. Nxe7+ {[%emt 0:00:10]} Kh8 {[%emt 0:00:08]} 22. Bxd2 {[%emt 0:00:32]} Rc4 {[%emt 0:02:02]} 23. Bc3 {[%emt 0:03:46]} Re8 {[%emt 0:00:42]} 24. Nef5 {[%emt 0:04:27]} exf5 {[%emt 0:14:51]} 25. Nxf5 {[%emt 0:00:24]} Rxc3 {[%emt 0:00:47]} 26. bxc3 {[%emt 0:00:43]} d5 {[%emt 0:01:25]} 27. Kc1 {[%emt 0:08:44]} Nb6 {[%emt 0:12:18]} 28. Nd6 {[%emt 0:03:34]} Re7 {[%emt 0:00:09]} 29. Nxb7 {[%emt 0:00:28]} Rxb7 {[%emt 0:00:07]} 30. exd5 {[%emt 0:00:24]} Rd7 {[%emt 0:00:19]} 31. d6 {[%emt 0:00:42]} a5 {[%emt 0:01:52]} 32. Rh4 {[%emt 0:00:54]} Kg8 {[%emt 0:00:50]} 33. c4 {[%emt 0:00:29]} Kf8 {[%emt 0:00:31]} 34. c5 {[%emt 0:00:11]} Nc8 {[%emt 0:00:15]} 35. Ra4 {[%emt 0:02:27]} Na7 {[%emt 0:00:18]} 36. Rxa5 {[%emt 0:00:33]} Nc6 {[%emt 0:00:07]} 37. Ra8+ {[%emt 0:00:39]} Rd8 {[%emt 0:00:07]} 38. Rxd8+ {[%emt 0:00:13]} Nxd8 {[%emt 0:00:06]} 39. Re1 {[%emt 0:00:06]} 1-0

[Event "Romanian Women Championship 2024"]
[Site "Eforie Nord"]
[Date "2024.03.02"]
[Round "9.12"]
[White "Kiss, Hanna"]
[Black "Vorniceanu, Alina"]
[Result "1/2-1/2"]
[ECO "B82"]
[WhiteElo "1446"]
[BlackElo "1476"]
[Annotator "NA RC"]
[PlyCount "38"]
[EventDate "2024.02.24"]
[EventType "swiss"]
[EventCountry "ROU"]
[SourceTitle "playchess.com"]
[Source "ChessBase"]
[SourceQuality "1"]
[TimeControl "40/5400+30:900+30"]

1. e4 {[%emt 0:00:03]} c5 {[%emt 0:00:08]} 2. Nf3 {[%emt 0:00:03]} e6 {[%emt 0:00:03]} 3. d4 {[%emt 0:00:06]} cxd4 {[%emt 0:00:04]} 4. Nxd4 {[%emt 0:00:05]} a6 {[%emt 0:00:04]} 5. Nc3 {[%emt 0:00:05]} Qc7 {[%emt 0:00:04]} 6. Bd3 {[%emt 0:00:08]} Nf6 {[%emt 0:00:22]} 7. Qe2 {[%emt 0:00:19]} d6 {[%emt 0:00:54]} 8. f4 {[%emt 0:00:34]} e5 {[%emt 0:01:58]} 9. Nf3 {[%emt 0:03:54]} b5 {[%emt 0:03:46]} 10. a3 {[%emt 0:03:05]} Bb7 {[%emt 0:04:04]} 11. Bd2 {[%emt 0:09:49]} Be7 {[%emt 0:02:37]} 12. Qf2 {[%emt 0:16:01]} Nbd7 {[%emt 0:05:59]} 13. O-O {[%emt 0:04:09]} d5 {[%emt 0:12:34]} 14. Qe2 {[%emt 0:10:40]} O-O {[%emt 0:16:15]} 15. fxe5 {[%emt 0:11:06]} Nxe5 {[%emt 0:01:20]} 16. Nxe5 {[%emt 0:05:29]} Qxe5 {[%emt 0:04:00]} 17. exd5 {[%emt 0:01:30]} Qxe2 {[%emt 0:05:08]} 18. Bxe2 {[%emt 0:00:17]} Nxd5 {[%emt 0:04:20]} 19. Bf3 {[%emt 0:05:59]} Bc5+ {[%emt 0:04:09]} 1/2-1/2